bitfinex/quotes_ETHUSD_20250726
["timestamp","ask_amount","ask_price","bid_price","bid_amount"]
[1753488240738,5.27557601,3721.4,3721.2,1.0258]
[1753488240913,5.13923295,3721.3,3721.2,1.0258]
[1753488241416,2.68723295,3721.3,3721.2,1.0258]
[1753488241615,5.13923295,3721.3,3721.2,1.0258]
[1753488241815,2.68656468,3722.3,3721.5,3.23704559]
[1753488242003,5.14458705,3722.2,3721.7,0.55]
[1753488242202,2.458,3722.2,3721.9,0.55]
[1753488242447,2.458,3722.2,3721.9,1.0258]
[1753488243543,2.68657114,3722.3,3721.9,1.0258]
[1753488243741,2.458,3722.1,3721.9,1.0258]
[1753488243939,2.458,3722.1,3722.0,1.0258]
[1753488244140,2.458,3722.1,3722.0,1.4953]
[1753488244821,2.458,3722.1,3722.0,1.0258]
[1753488248840,2.458,3722.1,3722.0,1.4953]
[1753488250519,2.458,3722.1,3722.0,2.276]
[1753488250874,0.7556,3724.0,3722.1,3.0]
[1753488251147,5.14735993,3723.9,3723.3,0.55]
[1753488251567,6.55588638,3724.6,3723.7,0.55]
[1753488251568,2.68497632,3724.5,3723.7,0.55]
[1753488251875,0.1344,3724.1,3723.9,3.23534178]
[1753488252026,2.5984,3724.4,3723.7,0.55]
[1753488252226,2.5984,3724.4,3724.0,1.4953]
[1753488252466,2.68514043,3724.2,3723.8,0.1344]
[1753488252763,2.5994,3724.1,3723.7,0.55]
[1753488252925,5.2846171,3724.1,3723.7,0.55]
[1753488253126,2.68529573,3724.0,3723.7,0.55]
[1753488253366,5.15029573,3724.0,3723.7,0.55]
[1753488253726,3.44102886,3723.8,3723.2,0.7807]
[1753488254039,3.44102886,3723.8,3722.8,0.4758]
[1753488254040,5.28390098,3723.7,3723.1,0.6844]
[1753488254234,5.28390098,3723.7,3723.1,3.6844]
[1753488254759,2.68558465,3723.6,3723.1,3.6844]
[1753488254924,2.68558465,3723.6,3723.1,0.6844]
[1753488255260,3.61248465,3723.6,3723.1,4.1602]
[1753488255455,2.5984,3723.7,3723.1,0.6844]
[1753488255669,2.5984,3723.7,3723.3,0.55]
[1753488255825,0.1344,3723.7,3723.5,0.55]
[1753488256024,0.1344,3723.9,3723.7,0.55]
[1753488256244,2.5984,3724.0,3723.9,0.55]
[1753488256471,2.5984,3724.0,3723.9,1.0258]
[1753488258045,2.464,3724.0,3723.9,1.4953]
[1753488259062,0.631,3724.2,3723.9,0.55]
[1753488259265,3.31619558,3724.2,3723.9,0.55]
[1753488259466,2.68526451,3724.1,3723.9,0.55]
[1753488259673,1.0613,3724.2,3723.7,0.55]
[1753488259863,3.61216267,3724.1,3723.7,0.55]
[1753488260470,0.1344,3724.2,3723.7,0.55]
[1753488260668,2.68543593,3723.8,3723.6,0.55]
[1753488261173,2.6855731,3723.6,3723.5,0.1344]
[1753488261362,2.68576208,3723.4,3722.9,0.1344]
[1753488261679,2.82016208,3723.4,3723.3,0.55]
[1753488263051,0.1344,3723.4,3723.3,0.55]
[1753488263557,0.1344,3723.4,3723.3,1.0154]
[1753488263758,2.82011735,3723.4,3723.2,0.55]
[1753488264158,2.82011735,3723.4,3722.9,0.1344]
[1753488264357,2.82011735,3723.4,3723.2,0.4654]
[1753488264590,0.1344,3723.4,3723.2,0.4654]
[1753488265176,2.82012182,3723.4,3723.2,0.4654]
[1753488265486,0.7566,3723.2,3722.5,4.15]
[1753488265686,2.82060312,3722.8,3722.3,4.15]
[1753488265866,2.82060312,3722.8,3722.3,4.2844]
[1753488266061,2.68622646,3722.7,3722.5,0.55]
[1753488266990,2.82057534,3722.8,3722.5,0.55]
[1753488267855,5.28357534,3722.8,3722.5,0.55]
[1753488268564,5.28357534,3722.8,3722.5,1.0154]
[1753488268770,2.5974,3722.8,3722.7,0.55]
[1753488269080,0.4668,3723.9,3722.8,0.7514]
[1753488269279,2.68580629,3723.3,3723.0,0.55]
[1753488269590,2.68580629,3723.3,3723.2,0.55]
[1753488269792,2.82014103,3723.4,3723.2,0.55]
[1753488269971,0.1344,3723.4,3723.2,1.0154]
[1753488270157,0.1344,3723.4,3723.0,0.55]
[1753488270158,2.68588417,3723.2,3723.0,0.55]
[1753488271360,2.68581686,3723.3,3723.0,0.55]
[1753488271692,2.82013574,3723.4,3723.0,0.55]
[1753488271891,2.68580602,3723.3,3723.2,0.55]
[1753488272696,2.82014686,3723.4,3723.2,0.55]
[1753488272896,2.68578948,3723.3,3723.2,0.55]
[1753488274106,0.1344,3723.4,3723.1,0.55]
[1753488274107,2.82013865,3723.4,3723.1,0.55]
[1753488274315,0.1344,3723.4,3723.3,0.55]
[1753488274475,0.1344,3723.4,3723.3,1.0154]
[1753488274677,2.5964,3723.5,3723.3,1.4703]
[1753488275223,2.5964,3723.5,3723.3,0.55]
[1753488275529,2.5964,3723.5,3723.4,1.4703]
[1753488275665,2.5964,3723.5,3723.4,1.0154]
[1753488275866,5.28204522,3723.5,3723.4,1.0154]
[1753488276501,2.5964,3723.5,3723.4,0.55]
[1753488277365,5.28204522,3723.5,3723.4,0.55]
[1753488279098,5.28004522,3723.5,3723.4,0.55]
[1753488279290,2.5944,3723.5,3723.4,0.55]
[1753488279902,5.28004522,3723.5,3723.4,0.55]
[1753488282271,2.5944,3723.5,3723.4,0.55]
[1753488282625,2.5944,3723.5,3723.4,1.0154]
[1753488282769,0.1344,3723.5,3723.4,1.4703]
[1753488282965,2.458,3723.7,3723.5,0.55]
[1753488283389,0.1344,3723.8,3723.5,1.0154]
[1753488283593,0.1344,3723.8,3723.6,0.9203]
[1753488283791,2.96005554,3725.8,3723.7,1.3273]
[1753488283792,0.7569,3724.6,3723.7,1.3273]
[1753488284100,2.68528464,3724.0,3723.7,0.55]
[1753488285394,1.6793094,3724.0,3723.5,0.1344]
[1753488285704,1.6793094,3724.0,3723.4,4.15]
[1753488285705,2.68564522,3723.5,3723.4,4.15]
[1753488285903,2.68580978,3723.3,3723.0,4.7498]
[1753488286206,2.68580978,3723.3,3723.1,0.55]
[1753488286624,2.68593376,3723.1,3723.0,4.15]
[1753488286938,2.68593376,3723.1,3723.0,4.7]
[1753488288034,2.68613656,3722.9,3722.7,0.1344]
[1753488288236,2.68613325,3722.9,3722.6,5.5924]
[1753488288440,2.68613325,3722.9,3722.7,0.55]
[1753488289116,2.6861502,3722.8,3722.7,0.55]
[1753488290535,2.68609489,3722.9,3722.7,0.55]
[1753488290829,2.68609489,3722.9,3722.7,1.0139]
[1753488291632,2.6861502,3722.8,3722.7,1.0139]
[1753488296252,2.458,3723.1,3722.7,1.4709]
[1753488296463,2.458,3723.1,3722.9,0.55]
[1753488296749,5.27627285,3723.2,3723.0,0.4639]
[1753488296946,5.27626162,3723.2,3723.1,0.55]
[1753488297263,5.27626162,3723.2,3723.1,1.0139]
[1753488297555,2.68596065,3723.1,3722.9,1.0139]
[1753488297747,2.68596065,3723.1,3722.9,0.55]
[1753488297953,2.68596065,3723.1,3723.0,1.0139]
[1753488299552,2.68596065,3723.1,3723.0,0.55]
[1753488300354,2.68622236,3722.7,3722.6,4.7]
[1753488300725,5.14122236,3722.7,3722.6,4.7]
[1753488301355,5.99232236,3722.7,3722.6,4.15]
[1753488301552,6.77982236,3722.7,3722.6,4.15]
[1753488303751,6.77982236,3722.7,3721.9,0.4639]
[1753488303752,4.0936,3722.7,3721.9,0.4639]
[1753488303952,2.68656258,3722.3,3722.0,0.4639]
[1753488304159,5.27596258,3722.3,3722.0,0.4639]
[1753488304332,2.5894,3722.3,3722.2,0.55]
[1753488304534,2.5894,3722.3,3722.2,1.4709]
[1753488304535,2.455,3722.3,3722.2,1.4709]
[1753488304737,0.1344,3722.5,3722.2,1.4709]
[1753488304934,5.14133775,3722.6,3722.2,1.4709]
[1753488304935,2.455,3722.6,3722.4,0.55]
[1753488305251,5.27556955,3722.8,3722.6,0.55]
[1753488305454,3.18389424,3723.5,3722.8,0.55]
[1753488305455,2.68586638,3723.2,3722.8,0.55]
[1753488305651,0.1344,3723.2,3723.0,0.55]
[1753488305967,0.1344,3723.2,3723.1,1.4709]
[1753488306548,2.6857683,3723.4,3723.2,0.55]
[1753488306549,2.456,3723.4,3723.2,0.55]
[1753488306766,2.5904,3723.4,3723.3,0.4639]
[1753488307334,0.1344,3723.4,3723.3,1.0139]
[1753488307537,2.013,3726.9,3723.6,2.68552177]
[1753488307538,0.7875,3724.2,3723.6,2.68552177]
[1753488307744,2.5904,3724.1,3723.8,0.55]
[1753488307939,2.5904,3724.1,3724.0,0.55]
[1753488308133,2.5904,3724.1,3724.0,0.4639]
[1753488308330,2.457,3724.4,3724.1,0.55]
[1753488308661,0.1344,3724.3,3724.2,1.0139]
[1753488308864,2.457,3724.4,3724.2,1.007]
[1753488309041,2.457,3724.4,3724.3,1.007]
[1753488309436,0.1344,3724.5,3724.4,0.55]
[1753488309636,3.47208725,3725.0,3724.4,1.4709]
[1753488309637,5.14071175,3724.8,3724.4,1.4709]
[1753488309860,5.14071175,3724.8,3724.6,0.55]
[1753488309861,0.1344,3724.7,3724.6,0.55]
[1753488310065,3.96735558,3725.3,3724.6,1.4709]
[1753488310262,0.1344,3724.8,3724.7,0.4639]
[1753488310465,2.456,3725.1,3724.8,1.3482]
[1753488310665,0.1344,3725.1,3725.0,0.55]
[1753488310841,0.1344,3725.1,3725.0,1.4709]
[1753488311366,0.1344,3725.1,3725.0,1.0139]
[1753488312975,2.68420874,3725.5,3725.0,1.4709]
[1753488313148,2.68391529,3725.9,3725.0,0.55]
[1753488313344,3.63848098,3726.0,3725.2,0.55]
[1753488313563,5.93058738,3726.1,3725.6,0.55]
[1753488313762,3.32342241,3726.1,3725.7,0.9209]
[1753488314065,3.32342241,3726.1,3725.8,0.9209]
[1753488314289,3.32342241,3726.1,3725.9,0.4639]
[1753488314637,6.00720317,3726.1,3725.9,0.4639]
[1753488314845,6.00720317,3726.1,3725.8,0.457]
[1753488314846,2.462,3726.1,3726.0,0.55]
[1753488315250,2.462,3726.1,3726.0,0.4639]
[1753488315541,2.462,3726.1,3726.0,1.4709]
[1753488315747,2.464,3726.5,3726.1,0.55]
[1753488315952,2.464,3726.5,3726.1,1.4709]
[1753488316255,2.464,3726.5,3726.3,0.55]
[1753488316441,2.464,3726.5,3726.4,0.4639]
[1753488317242,2.463,3726.7,3726.4,0.4639]
[1753488317435,3.1548639,3726.7,3726.4,0.4639]
[1753488318172,5.83823951,3726.7,3726.4,0.4639]
[1753488318372,2.68341875,3726.6,3726.5,0.4639]
[1753488319179,2.68348738,3726.5,3726.3,0.55]
[1753488319562,3.1538639,3726.7,3726.3,0.55]
[1753488319780,2.68354247,3726.5,3726.3,0.55]
[1753488319944,2.68355517,3726.4,3726.3,0.55]
[1753488320581,2.68355517,3726.4,3726.3,0.75434205]
[1753488322092,5.14455517,3726.4,3726.3,0.75434205]
[1753488322245,6.86365517,3726.4,3726.3,0.20434205]
[1753488322576,2.68381522,3726.1,3725.8,0.55]
[1753488323246,2.68381522,3726.1,3725.8,0.75229234]
[1753488323475,2.68381522,3726.1,3725.8,1.22219234]
[1753488323810,2.81804377,3726.3,3725.8,1.22219234]
[1753488323811,0.1344,3726.3,3725.8,0.20229234]
[1753488323943,2.68391529,3725.9,3725.8,0.20229234]
[1753488324152,2.81831529,3725.9,3725.6,0.4699]
[1753488324387,0.1344,3725.9,3725.7,0.4699]
[1753488324586,0.1344,3725.9,3725.8,0.55]
[1753488324769,2.81831529,3725.9,3725.8,1.0199]
[1753488325582,2.81831529,3725.9,3725.7,0.55]
[1753488325780,0.1344,3725.9,3725.7,1.0199]
[1753488325991,0.1344,3725.9,3725.8,0.4699]
[1753488326184,0.1344,3725.9,3725.8,0.67062168]
[1753488326500,0.1344,3725.9,3725.8,1.22062168]
[1753488327798,2.46,3726.1,3725.9,0.55]
[1753488328213,2.46,3726.1,3726.0,1.0199]
[1753488328919,5.14377123,3726.1,3726.0,0.55]
[1753488329069,6.0190515,3726.1,3726.0,0.55]
[1753488329425,6.4732515,3726.1,3726.0,0.55]
[1753488329913,2.68391529,3725.9,3725.8,0.75072168]
[1753488330214,2.81831529,3725.9,3725.8,0.55]
[1753488330420,4.70952197,3725.9,3725.8,0.55]
[1753488330768,2.68398733,3725.8,3725.7,0.1987003]
[1753488330970,2.68427551,3725.4,3725.1,4.2844]
[1753488331216,0.1344,3725.7,3725.4,0.55]
[1753488331366,0.1344,3725.7,3725.1,4.7543]
[1753488331367,2.68434756,3725.3,3725.1,4.2844]
[1753488331590,2.68440623,3725.3,3725.0,0.8055]
[1753488331830,0.1344,3725.4,3725.1,0.4699]
[1753488331831,2.8187025,3725.4,3725.1,0.4699]
[1753488332128,2.68440913,3725.3,3725.1,0.4699]
[1753488332497,2.68440913,3725.3,3725.2,0.55]
[1753488333830,2.68451953,3725.1,3725.0,0.55]
[1753488334131,2.81867843,3725.4,3725.0,1.0199]
[1753488334333,0.1344,3725.4,3725.0,1.0199]
[1753488334495,5.14439649,3725.3,3725.0,1.0199]
[1753488334692,5.14439649,3725.3,3725.2,0.55]
[1753488336038,5.14439649,3725.3,3725.2,1.0199]
[1753488336039,2.46,3725.3,3725.2,1.0199]
[1753488336333,2.46,3725.3,3725.2,1.4598]
[1753488337317,5.14434756,3725.3,3725.2,1.4598]
[1753488337719,5.14434756,3725.3,3725.2,0.55]
[1753488339144,2.46,3725.3,3725.2,0.55]
[1753488339448,2.46,3725.3,3725.2,1.4598]
[1753488339678,0.1344,3725.5,3725.3,0.55]
[1753488339815,2.458,3725.6,3725.5,0.55]
[1753488340252,2.458,3725.6,3725.5,1.4598]
[1753488340734,2.458,3725.6,3725.5,0.55]
[1753488340926,2.458,3725.6,3725.5,1.0199]
[1753488341594,2.458,3725.7,3725.5,1.4598]
[1753488341746,2.458,3725.7,3725.4,0.55]
[1753488342089,2.458,3725.7,3725.6,1.0199]
[1753488342249,2.458,3725.7,3725.6,0.55]
[1753488342450,2.458,3725.7,3725.6,1.4598]
[1753488343847,5.14205937,3725.7,3725.6,0.55]
[1753488344087,2.458,3725.7,3725.6,0.55]
[1753488344742,3.47423889,3725.6,3725.2,4.15]
[1753488344947,2.68434756,3725.3,3725.2,4.15]
[1753488345547,2.68434756,3725.3,3725.2,4.7]
[1753488345873,5.27672347,3725.4,3725.2,5.1699]
[1753488346046,5.27672347,3725.4,3725.3,0.4699]
[1753488346249,2.68434756,3725.3,3725.2,0.55]
[1753488346592,2.68434756,3725.3,3725.2,1.0199]
[1753488346746,2.5924,3725.4,3725.2,1.0199]
[1753488346747,5.27669078,3725.4,3725.2,1.0199]
[1753488348283,2.68434756,3725.3,3725.2,1.0199]
[1753488350251,2.68449169,3725.1,3725.0,0.74830984]
[1753488350883,2.68456375,3725.0,3724.9,0.1344]
[1753488351059,2.68484669,3724.7,3724.4,0.1344]
[1753488351265,5.14084669,3724.7,3724.5,0.55]
[1753488351583,5.14084669,3724.7,3724.4,0.33851095]
[1753488351778,5.14084669,3724.7,3724.5,0.55]
[1753488352284,5.14084669,3724.7,3724.5,1.0149]
[1753488353389,2.456,3724.7,3724.5,1.0149]
[1753488353689,2.456,3724.7,3724.6,1.0149]
[1753488354972,5.14077998,3724.7,3724.6,0.55]
[1753488355296,2.456,3724.7,3724.6,0.55]
[1753488355884,2.406,3724.7,3724.6,1.0149]
[1753488357511,5.09077998,3724.7,3724.6,1.0149]
[1753488357884,5.09077998,3724.7,3724.6,0.55]
[1753488367234,5.51957998,3724.7,3724.6,0.55]
[1753488367413,5.09077998,3724.7,3724.6,0.55]
[1753488369831,5.09077998,3724.7,3724.6,1.0149]
[1753488373258,2.406,3724.7,3724.6,1.0149]
[1753488373417,2.406,3724.7,3724.6,1.4573]
[1753488374258,5.09077998,3724.7,3724.6,1.4573]
[1753488374614,5.09077998,3724.7,3724.6,1.0149]
[1753488374816,2.81913551,3724.8,3724.6,1.0149]
[1753488375143,2.451,3724.7,3724.6,0.9924]
[1753488375343,5.13577998,3724.7,3724.6,0.9924]
[1753488375716,5.13577998,3724.7,3724.6,1.4573]
[1753488376144,5.13577998,3724.7,3724.6,1.0149]
[1753488376958,5.13577998,3724.7,3724.6,0.55]
[1753488377159,2.451,3724.7,3724.6,0.55]
[1753488377368,2.451,3724.7,3724.6,1.0149]
[1753488378276,0.1344,3724.8,3724.6,1.4573]
[1753488378454,2.451,3724.7,3724.6,0.55]
[1753488378654,0.1344,3724.8,3724.7,0.55]
[1753488378855,2.451,3724.8,3724.7,0.55]
[1753488379069,2.451,3724.8,3724.7,1.4573]
[1753488379473,2.451,3724.8,3724.7,4.14207998]
[1753488379636,2.451,3724.8,3724.7,5.32890833]
[1753488379977,0.1344,3725.1,3724.7,5.32890833]
[1753488380241,2.451,3725.0,3724.9,0.55]
[1753488380441,2.451,3725.0,3724.9,1.4676]
[1753488381583,2.451,3725.0,3724.7,0.55]
[1753488381803,2.451,3725.0,3724.9,0.55]
[1753488382154,2.451,3725.0,3724.9,1.4676]
[1753488382998,0.1344,3725.1,3725.0,0.55]
[1753488383198,2.451,3725.1,3725.0,0.55]
[1753488383401,2.451,3725.1,3725.0,1.4676]
[1753488384166,2.68418904,3725.6,3725.0,1.4676]
[1753488384369,0.1344,3725.4,3725.0,3.69385442]
[1753488384678,0.1344,3725.4,3725.2,0.55]
[1753488384861,2.451,3725.3,3725.2,0.55]
[1753488385063,2.451,3725.3,3725.2,1.4676]
[1753488385388,2.451,3725.3,3725.2,1.0083]
[1753488386303,0.76,3725.8,3725.3,0.55]
[1753488386459,0.1344,3725.5,3725.3,0.55]
[1753488386669,2.451,3725.4,3725.3,0.4593]
[1753488387199,2.451,3725.4,3725.3,1.4676]
[1753488387870,2.81853737,3725.6,3725.4,0.55]
[1753488388095,2.451,3725.5,3725.4,0.55]
[1753488388317,2.451,3725.5,3725.4,1.0083]
[1753488388530,2.81853737,3725.6,3725.4,1.0083]
[1753488388677,2.451,3725.5,3725.4,1.0083]
[1753488388872,2.451,3725.5,3725.4,0.55]
[1753488389512,2.451,3725.5,3725.4,1.0083]
[1753488389991,0.8028,3726.2,3725.7,0.55]
[1753488390195,5.26923316,3726.1,3725.7,0.55]
[1753488390376,2.68384326,3726.0,3725.9,0.55]
[1753488392507,2.68384326,3726.0,3725.6,4.7437]
[1753488392508,2.68405937,3725.7,3725.6,4.15]
[1753488392708,6.20705937,3725.7,3725.6,4.15]
[1753488393575,2.6842018,3725.6,3725.3,0.55]
[1753488393776,5.13525396,3725.5,3725.3,0.55]
[1753488393975,5.13525396,3725.5,3725.3,1.0083]
[1753488394202,2.68428105,3725.4,3725.2,0.55]
[1753488394384,2.451,3725.3,3725.2,1.0083]
[1753488395010,5.13534756,3725.3,3725.2,0.55]
[1753488395205,2.68456805,3725.0,3724.9,0.55]
[1753488395614,5.13551543,3725.1,3724.9,1.0083]
[1753488397110,5.13551543,3725.1,3724.9,0.55]
[1753488397111,2.451,3725.1,3724.9,0.55]
[1753488397306,2.451,3725.1,3725.0,1.0083]
[1753488397516,5.13549169,3725.1,3725.0,1.0083]
[1753488398793,5.13549169,3725.1,3725.0,0.55]
[1753488399175,2.451,3725.1,3725.0,0.55]
[1753488399380,2.451,3725.1,3725.0,1.0083]
[1753488400881,5.13549169,3725.1,3725.0,1.0083]
[1753488401823,2.451,3725.1,3725.0,1.0083]
[1753488403031,5.13549169,3725.1,3725.0,1.0083]
[1753488403533,2.451,3725.1,3725.0,1.0083]
[1753488403741,5.13549169,3725.1,3725.0,1.0083]
[1753488403924,2.451,3725.1,3725.0,1.0083]
[1753488404102,5.13549169,3725.1,3725.0,1.0083]
[1753488404939,3.50403582,3724.9,3724.8,0.1344]
[1753488405230,2.68506833,3724.3,3724.2,0.2035281]
[1753488405396,2.451,3724.3,3724.0,0.1344]
[1753488405799,2.68514043,3724.2,3724.0,0.5927]
[1753488405997,2.68528464,3724.0,3723.9,4.15]
[1753488406340,6.07388464,3724.0,3723.9,4.15]
[1753488407557,2.68564522,3723.5,3723.4,4.15]
[1753488407838,2.68571735,3723.4,3723.3,0.1344]
[1753488408043,5.58096268,3723.5,3723.3,0.1344]
[1753488408208,5.13666268,3723.5,3723.3,0.1344]
[1753488408742,2.451,3723.5,3723.4,1.4676]
[1753488409036,2.68552008,3723.7,3723.4,1.4676]
[1753488409238,2.451,3723.6,3723.4,0.55]
[1753488409536,2.68551566,3723.7,3723.5,0.9176]
[1753488409742,2.451,3723.6,3723.5,0.4593]
[1753488409900,5.13657439,3723.6,3723.4,0.74717113]
[1753488410101,2.451,3723.6,3723.4,1.18407113]
[1753488410500,2.451,3723.6,3723.5,0.4516]
[1753488410722,2.451,3723.6,3723.5,0.8885]
[1753488411431,5.1365731,3723.6,3723.5,0.4516]
[1753488411846,2.68564522,3723.5,3723.4,0.74717113]
[1753488413455,5.13659007,3723.6,3723.4,0.74717113]
[1753488413614,5.13659007,3723.6,3723.4,1.19877113]
[1753488413958,5.13659007,3723.6,3723.5,0.4516]
[1753488414532,2.68564522,3723.5,3723.4,0.74717113]
[1753488414747,2.68564522,3723.5,3723.4,0.55]
[1753488415561,2.451,3723.5,3723.4,0.55]
[1753488416863,5.13664522,3723.5,3723.4,0.55]
[1753488418965,2.451,3723.5,3723.4,1.0016]
[1753488419265,2.451,3723.5,3723.4,1.4385]
[1753488421086,2.451,3723.5,3723.4,1.4385]
[1753488421372,2.451,3723.5,3723.4,1.0016]
[1753488421540,5.13664522,3723.5,3723.4,1.0016]
[1753488421751,2.451,3723.5,3723.4,1.0016]
[1753488423401,2.451,3723.5,3723.4,5.1516]
[1753488426356,5.13664522,3723.5,3723.4,4.7]
[1753488426679,5.95624522,3723.5,3723.4,4.7]
[1753488427175,2.68586162,3723.2,3723.1,4.15]
[1753488427373,2.68624222,3722.7,3722.4,3.1344]
[1753488427681,2.451,3722.6,3722.4,3.1344]
[1753488427868,5.1373098,3722.6,3722.4,3.586]
[1753488428175,2.68636668,3722.5,3722.3,4.15]
[1753488428353,5.13743885,3722.4,3722.3,0.1344]
[1753488428562,5.13743885,3722.4,3722.2,0.1344]
[1753488429380,5.1374603,3722.4,3722.2,0.6844]
[1753488429681,2.451,3722.4,3722.3,0.4516]
[1753488429881,2.451,3722.4,3722.3,0.8885]
[1753488430578,2.451,3722.4,3722.3,0.4516]
[1753488432685,2.68651102,3722.3,3722.2,4.7]
[1753488432851,2.451,3722.4,3722.2,4.7]
[1753488433065,2.6865832,3722.2,3721.8,0.55]
[1753488433269,2.452,3722.1,3721.8,1.136]
[1753488433772,2.452,3722.1,3721.9,0.4516]
[1753488435100,2.452,3722.1,3721.9,0.65372248]
[1753488435997,2.452,3722.1,3721.9,0.20212248]
[1753488436316,2.452,3722.1,3722.0,0.8885]
[1753488437208,2.452,3722.1,3722.0,0.4516]
[1753488437408,2.452,3722.1,3721.8,0.6844]
[1753488437572,2.71064,3722.1,3721.8,0.6844]
[1753488437914,2.452,3722.1,3721.8,0.6844]
[1753488438118,5.13866412,3722.1,3721.8,0.6844]
[1753488438276,2.452,3722.1,3721.8,0.6844]
[1753488438871,2.452,3722.1,3721.8,1.136]
[1753488439112,2.452,3722.1,3721.8,1.33923116]
[1753488439797,2.452,3722.1,3721.8,3.57448632]
[1753488439999,2.452,3722.1,3721.9,0.4516]
[1753488440172,2.452,3722.1,3721.9,0.4382]
[1753488440373,2.452,3722.1,3722.0,0.4964]
[1753488441116,2.452,3722.1,3722.0,0.9346]
[1753488441311,2.452,3722.1,3722.0,0.4964]
[1753488441917,2.452,3722.1,3722.0,0.9346]
[1753488442110,2.452,3722.1,3721.8,3.57447333]
[1753488442111,3.7231,3722.1,3721.8,0.20323116]
[1753488442314,4.1652,3722.1,3721.7,0.6844]
[1753488442687,3.7063,3722.1,3721.7,1.1808]
[1753488443215,3.2642,3722.1,3721.7,1.1808]
[1753488443711,3.2642,3722.1,3721.8,0.4964]
[1753488444816,3.2642,3722.1,3721.9,0.4964]
[1753488446199,2.452,3722.1,3721.9,0.4964]
[1753488446399,2.452,3722.1,3721.8,0.20592409]
[1753488446599,5.13866252,3722.1,3721.8,0.4964]
[1753488446988,5.13866252,3722.1,3721.7,4.8344]
[1753488447185,5.13866252,3722.1,3721.7,5.3308]
[1753488447928,2.452,3722.1,3721.7,4.8344]
[1753488448227,2.452,3722.1,3721.8,0.4964]
[1753488448522,5.13866146,3722.1,3721.8,0.4964]
[1753488448908,2.452,3722.1,3721.8,0.4964]
[1753488449626,2.452,3722.1,3721.8,0.69593307]
[1753488449921,2.452,3722.1,3721.9,0.4964]
[1753488452493,2.452,3722.1,3721.7,8.01772605]
[1753488452689,2.452,3722.1,3721.8,0.4964]
[1753488452916,2.452,3722.1,3721.8,0.20440817]
[1753488453223,2.452,3722.1,3721.7,7.95952605]
[1753488453224,2.452,3722.1,3721.9,0.4964]
[1753488453601,2.452,3722.1,3721.7,5.2726]
[1753488453927,2.452,3722.1,3721.8,0.4964]
[1753488454339,2.452,3722.1,3721.9,0.4964]
[1753488457837,5.13869873,3722.1,3721.9,0.4964]
[1753488458032,2.452,3722.1,3721.8,0.20166579]
[1753488458335,5.13869626,3722.1,3721.8,0.4964]
[1753488458540,2.452,3722.1,3721.8,0.4964]
[1753488458843,3.41926905,3722.1,3721.7,0.1344]
[1753488459043,3.48510046,3721.7,3721.5,4.15]
[1753488459250,3.2501,3721.7,3721.4,0.55]
[1753488459539,3.6922,3721.7,3721.4,0.75307702]
[1753488459740,5.93708792,3721.7,3721.4,0.75307702]
[1753488459944,3.2501,3721.7,3721.4,1.24947702]
[1753488460406,2.452,3721.7,3721.5,0.4964]
[1753488460716,2.452,3721.7,3721.6,0.4382]
[1753488461248,2.452,3721.8,3721.6,0.9346]
[1753488461429,2.452,3721.8,3721.4,4.24822502]
[1753488461430,0.1344,3721.9,3721.8,3.23687194]
[1753488461636,2.452,3722.2,3721.9,1.358]
[1753488461954,0.1344,3722.4,3722.0,0.9346]
[1753488462252,2.452,3722.3,3722.1,2.68662566]
[1753488462426,2.452,3722.3,3722.0,0.9346]
[1753488462427,2.452,3722.3,3722.0,2.68671148]
[1753488462623,2.452,3722.3,3722.2,0.4964]
[1753488463231,2.452,3722.3,3722.0,0.9346]
[1753488463448,2.452,3722.3,3722.0,0.4382]
[1753488463652,0.1344,3722.4,3722.1,0.4964]
[1753488463812,2.452,3722.2,3721.9,1.0464]
[1753488464451,1.0354,3722.4,3721.9,1.0464]
[1753488464625,2.452,3722.3,3722.0,0.4964]
[1753488465212,2.452,3722.3,3721.9,3.23679045]
[1753488465416,2.452,3722.3,3722.1,0.4964]
[1753488467355,2.452,3722.3,3721.9,0.55]
[1753488467527,2.452,3722.3,3721.9,5.1964]
[1753488467856,1.6991,3722.2,3721.9,4.7]
[1753488468149,3.48470614,3722.2,3721.9,4.7]
[1753488468326,0.901,3722.1,3721.9,4.7]
[1753488468525,0.7981,3722.2,3721.9,4.7]
[1753488468846,0.901,3722.1,3721.9,4.7]
[1753488469015,2.452,3722.0,3721.9,4.7]
[1753488470044,2.452,3722.0,3721.9,5.1636]
[1753488472727,2.452,3722.0,3721.9,4.7]
[1753488474662,2.452,3722.0,3721.9,5.1636]
[1753488475169,5.13872756,3722.0,3721.9,4.15]
[1753488476575,6.18792756,3722.0,3721.9,4.15]
[1753488476746,7.15519495,3722.0,3721.9,4.15]
[1753488477547,6.67109495,3722.0,3721.9,4.15]
[1753488478033,2.68707171,3721.6,3721.4,0.20307702]
[1753488478249,2.68708853,3721.5,3721.2,3.0]
[1753488478450,5.13804349,3721.6,3721.3,0.4636]
[1753488478649,5.13804349,3721.6,3721.4,0.4636]
[1753488478861,5.13802022,3721.6,3721.4,0.4636]
[1753488479061,5.13802022,3721.6,3721.5,0.4501]
[1753488479062,2.451,3721.6,3721.5,0.4501]
[1753488479261,2.451,3721.6,3721.5,0.9137]